Cogmind - Beta 13 @@@ ROGUE MODE // 2024.04.03 @ 22:54:52 Player: KoT Result: Smashed by cave-in Performance ------------- Evolutions (0) 0 Regions Visited (2) 400 Robots Destroyed (19) 95 Value Destroyed (387) 387 Prototype IDs (0) 0 Alien Tech Used (0) 0 Bonus (0) 0 TOTAL SCORE: 882 Bonus ------- None Cogmind --------- Core Integrity 0/250 Matter 275/300 Energy 134/250 System Corruption 6% Temperature Cool (2) Movement Treading (160) Location -10/Mines Parts ------- > --- POWER (1) -------- Ion Engine > --- PROPULSION (2) --- Light Treads Light Treads (fused) > --- UTILITY (2) ------ Large Storage Unit Sensor Array > --- WEAPON (2) ------- Spread Laser Heavy Hammer > --- INVENTORY (15) --- Large Storage Unit High-capacity Matter Pod (150) Signal Interpreter Signal Interpreter Spread Laser Spread Laser Spread Laser Light Assault Rifle Light Assault Rifle Light Assault Rifle Light Cannon Grenade Launcher Datajack Heavy Hammer Peak State ------------ > --- POWER ------------ Ion Engine > --- PROPULSION ------- Light Treads Light Treads > --- UTILITY ---------- Large Storage Unit High-capacity Matter Pod > --- WEAPON ----------- Spread Laser Light Assault Rifle > --- INVENTORY -------- Ion Engine Large Storage Unit Sensor Array Signal Interpreter Signal Interpreter Spread Laser Spread Laser Spread Laser Light Assault Rifle Light Assault Rifle Light Assault Rifle Light Cannon Grenade Launcher Heavy Hammer Heavy Hammer [Rating: 10] Favorites ----------- Power Ion Engine Engine Ion Engine Propulsion Light Treads Treads Light Treads Utility High-capacity Matter Pod Device Sensor Array Storage High-capacity Matter Pod Weapon Light Assault Rifle Energy Gun Spread Laser Ballistic Gun Light Assault Rifle Impact Weapon Heavy Hammer Build | -11 -10 -10 ------- Run | Yrd Mat Min Slots Evolved . | . . . Power . | . . . Propulsion . | . . . Utility . | . . . Weapon . | . . . Parts Attached 18 | 7 8 3 Power 4 | 1 2 1 Engine 4 | 1 2 1 Core . | . . . Reactor . | . . . Propulsion 4 | 2 2 . Treads 4 | 2 2 . Leg . | . . . Wheel . | . . . Hover . | . . . Flight . | . . . Utility 4 | 1 2 1 Device 1 | . . 1 Storage 3 | 1 2 . Processor . | . . . Hackware . | . . . Protection . | . . . Artifact . | . . . Weapon 6 | 3 2 1 Energy Gun 1 | . 1 . Energy Cannon . | . . . Ballistic Gun 4 | 3 1 . Ballistic Cannon . | . . . Launcher . | . . . Special Weapon . | . . . Impact Weapon 1 | . . 1 Slashing Weapon . | . . . Piercing Weapon . | . . . Special Melee Weapon . | . . . Unidentified Prototypes . | . . . Parts Lost 4 | . 3 1 Power 3 | . 2 1 Propulsion . | . . . Utility . | . . . Weapon 1 | . 1 . Highest Loss Streak 2 | . 2 1 To Critical Strikes . | . . . Average Slot Usage (%) 92 | . 90 100 Engine 13 | . 13 14 Treads 27 | . 27 28 Storage 25 | . 26 25 Energy Gun 5 | . 3 14 Ballistic Gun 16 | . 18 11 Naked Turns . | . . . Heaviest Build 33 | 11 33 33 Greatest Support 40 | 40 40 40 Greatest Overweight (x) . | . . . Average Overweight (x) . | . . . Largest Inventory Capacity 15 | 8 15 15 Average Capacity 11 | 7 10 15 Most Carried 15 | 5 15 15 Average Carried 9 | 1 8 14 Final Capacity 15 | 8 15 15 Final Carried 15 | 2 15 14 Class Distribution -------------------- 100% | Mutant Dominant Class ---------------- Mutant | -10/Materials Mutant | -10/Mines Resources | -11 -10 -10 ----------- Run | Yrd Mat Min Matter Collected 771 | 294 477 . Remotely . | . . . Salvage Created 657 | 92 565 . Parts 43 | 3 40 . Haulers Intercepted 2 | . 2 . Recyclers Shooed . | . . . Parts Field Recycled . | . . . Retrieved Matter . | . . . Parts Self-Destructed . | . . . Prevented . | . . . Kills | -11 -10 -10 ------- Run | Yrd Mat Min Combat Hostiles Destroyed 14 | . 14 . Guns 14 | . 14 . Classes Destroyed 6 | 1 5 . Hauler 2 | . 2 . Recycler 1 | 1 . . Operator 1 | . 1 . Watcher 1 | . 1 . Swarmer 6 | . 6 . Grunt 8 | . 8 . Best Kill Streak 6 | 1 6 . Combat Bots Only 6 | . 6 . Max Kills in Single Turn 1 | 1 1 . Gunslinging . | . . . Exploded . | . . . Melee . | . . . Uniques/NPCs Destroyed . | . . . Combat | -11 -10 -10 -------- Run | Yrd Mat Min Hostile Shots Fired 116 | . 116 . Missed 42 | . 42 . Damage Taken 1216 | . 810 406 Core 299 | . 162 137 Absorbed by Shields . | . . . Core Remaining (%) 100 | 100 . . Volleys Fired 87 | 6 81 . Largest 2 | 2 2 . Hottest 85 | 40 85 . Shots Fired 141 | 12 129 . Gun 141 | 12 129 . Cannon . | . . . Launcher . | . . . Special . | . . . Kinetic 140 | 12 128 . Thermal 1 | . 1 . Explosive . | . . . Electromagnetic . | . . . Robot Hit Streak 7 | 2 7 . Robot Miss Streak 4 | 2 4 . Penetration Max . | . . . Secondary Targets 7 | . 7 . Max Gunslinging Chain 1 | . 1 . Shots Hit Robots 85 | 7 78 . Core Hits 39 | 2 37 . Critical Kills . | . . . Critical Parts Destroyed 1 | . 1 . Critical Strikes 1 | . 1 . Destroy 1 | . 1 . Melee Attacks 12 | . . 12 Impact 12 | . . 12 Slashing . | . . . Piercing . | . . . Sneak Attacks . | . . . Combat Hostiles . | . . . Follow-up Attacks . | . . . Damage Inflicted 890 | 86 804 . Guns 878 | 86 792 . Cannons . | . . . Explosions . | . . . Melee . | . . . Ramming 12 | . 12 . Kinetic 860 | 86 774 . Thermal 18 | . 18 . Explosive . | . . . Electromagnetic . | . . . Impact . | . . . Slashing . | . . . Piercing . | . . . Highest Corruption 6 | . 3 6 Average Corruption 2 | . 2 3 Corruption Purged . | . . . Corruption Blocked . | . . . Effects 21 | . 15 6 Message Errors 6 | . 3 3 Matter Fused 5 | . 5 . Heat Flow Errors 1 | . 1 . Energy Discharges 2 | . 2 . Parts Fused 1 | . . 1 Data Loss (minor) 4 | . 3 1 Data Loss (major) 1 | . 1 . Alerts 1 | . . 1 Overload Shots . | . . . Overflow Damage . | . . . Projectiles . | . . . Explosions . | . . . Melee . | . . . Knockbacks . | . . . Impact . | . . . Kinetic . | . . . Secondary . | . . . Self-Inflicted Damage . | . . . Shots . | . . . Rammed 1 | . 1 . Targets Rammed 1 | . 1 . Kicked . | . . . Crushed . | . . . Highest Temperature 196 | . 196 . Average Temperature 35 | . 35 . Received Heat Transfer 279 | . 279 . Siege Activations . | . . . Robots Corrupted . | . . . Combat Hostiles . | . . . Parts Fried . | . . . Impact Corruptions . | . . . Robots Melted . | . . . Combat Hostiles . | . . . Parts Melted . | . . . Heat Transferred 20 | . 20 . Parts Sabotaged . | . . . Parts Stolen . | . . . Parts Stripped . | . . . Power Chain Reactions . | . . . Alert | -11 -10 -10 ------- Run | Yrd Mat Min Peak Influence 202 | 5 202 8 Initial 7 | . 3 7 Average 40 | 1 55 6 Maximum Alert Level 1 | . 1 . Low Security (%) 98 | 100 98 100 Level 1 1 | . 1 . Level 2 . | . . . Level 3 . | . . . Level 4 . | . . . Level 5 . | . . . High Security . | . . . Max Security . | . . . Squads Dispatched 2 | . 2 . Investigation 1 | . 1 . Extermination . | . . . Reinforcement 1 | . 1 . Assault . | . . . Garrison . | . . . Intercept . | . . . Searches Triggered . | . . . Construction Impeded . | . . . Haulers Reinforced . | . . . Active Scanning Responses . | . . . Cargo Convoy Interrupts . | . . . Stealth | -11 -10 -10 --------- Run | Yrd Mat Min Distress Signals . | . . . Communications Jammed . | . . . Distress Signals . | . . . Times Spotted 28 | . 28 . Peak Tracking Total 7 | . 7 . Tactical Retreats . | . . . Traps | -11 -10 -10 ------- Run | Yrd Mat Min Traps Triggered 3 | . 3 . Indirectly . | . . . Trap Hack Attempts . | . . . Triggered . | . . . Disarmed . | . . . Reprogrammed . | . . . Reused . | . . . Traps Extracted . | . . . Installed . | . . . Triggered . | . . . Machines | -11 -10 -10 ---------- Run | Yrd Mat Min Machines Disabled . | . . . Max in Single Turn . | . . . Machines Repaired . | . . . Machines Dismantled . | . . . Machines Sabotaged . | . . . Overloaded Fab Kills . | . . . Hacking | -11 -10 -10 --------- Run | Yrd Mat Min Machines Accessed 3 | . 3 . Terminals 3 | . 3 . Fabricators . | . . . Repair Stations . | . . . Recycling Units . | . . . Scanalyzers . | . . . Garrison Access . | . . . Total Hacks 6 | . 6 . Successful 3 | . 3 . Failed 3 | . 3 . Catastrophic . | . . . Database Lockouts . | . . . Manual . | . . . Terminals 6 | . 6 . Fabricators . | . . . Repair Stations . | . . . Recycling Units . | . . . Scanalyzers . | . . . Garrison Access . | . . . Terminal Hacks 3 | . 3 . Robot Analysis 1 | . 1 . Unreport Threat 1 | . 1 . Locate Traps 1 | . 1 . Fabricator Hacks . | . . . Repair Station Hacks . | . . . Recycling Unit Hacks . | . . . Scanalyzer . | . . . Garrison Access Hacks . | . . . Unauthorized Hacks . | . . . Terminals . | . . . Fabricators . | . . . Repair Stations . | . . . Recycling Units . | . . . Scanalyzers . | . . . Garrison Access . | . . . Data Cores Recovered . | . . . Used . | . . . Hacking Detections 3 | . 3 . Full Trace Events 1 | . 1 . Feedback Events 1 | . 1 . Corruption 1 | . 1 . Feedback Blocked . | . . . Robot Schematics Acquired . | . . . Robots Built . | . . . Authchips . | . . . Time . | . . . Total Robot Build Rating . | . . . Part Schematics Acquired . | . . . Parts Built . | . . . Authchips . | . . . Time . | . . . Total Part Build Rating . | . . . Parts Repaired . | . . . Time . | . . . Parts Recycled . | . . . Recycled Matter . | . . . Retrieved Matter . | . . . Retrieved Components . | . . . Parts Scanalyzed . | . . . Part Schematics Acquired . | . . . Parts Damaged . | . . . Bothacking | -11 -10 -10 ------------ Run | Yrd Mat Min Used RIF Installer . | . . . Robots Hacked . | . . . Non-combat . | . . . Combat . | . . . Robot Hacks Applied . | . . . Relay Couplers Released . | . . . Fabnet Peak Effective % . | . . . Robots Rewired . | . . . Allies Hacked . | . . . Hacks Repelled . | . . . Allies | -11 -10 -10 -------- Run | Yrd Mat Min Total Allies . | . . . Largest Group . | . . . Highest-Rated Group . | . . . Highest-Rated Ally . | . . . Total Orders . | . . . Ally Attacks . | . . . Total Damage . | . . . Kills . | . . . Allies Corrupted . | . . . Allies Melted . | . . . Intel | -11 -10 -10 ------- Run | Yrd Mat Min Robot Analysis Total 1 | . 1 . Derelict Logs Recovered 1 | . . 1 Drone Launches . | . . . Drone Recoveries . | . . . Exploration | -11 -10 -10 ------------- Run | Yrd Mat Min Turns Passed 1341 | 91 958 292 Spaces Moved 672 | 53 459 160 Core 21 | 21 . . Treads 651 | 32 459 160 Legs . | . . . Wheels . | . . . Hover . | . . . Flight . | . . . Fastest Speed 50 | 50 160 160 Average Speed 156 | 116 160 160 Slowest Speed 160 | 160 160 160 Overloaded Moves . | . . . Propulsion Burnouts . | . . . Robots Hopped . | . . . Cave-ins Triggered 2 | . . 2 Exploration Rate (%) 40 | 5 72 43 Regions Visited 2 Branch Regions 1 Pre-discovered Areas 2 | . . 2 Known Exits Taken . | . . . Unknown Exits Taken 2 | 1 1 . Scrap Searched . | . . . Spaces Dug 12 | . . 12 Terrain Destroyed 12 | . . 12 Melee 12 | . . 12 Projectile . | . . . AOE . | . . . Terrain Rammed . | . . . Walls Destroyed . | . . . Machines Disabled . | . . . Actions | -11 -10 -10 --------- Run | Yrd Mat Min Total 817 | 72 571 174 Wait . | . . . Move 669 | 52 458 159 Hop . | . . . Pick Up 25 | 6 19 . Fast Attach 2 | 2 . . Attach 11 | 4 6 1 Detach . | . . . Swap 5 | 1 2 2 Drop 5 | 1 4 . Fire 87 | 6 81 . Melee 12 | . . 12 Ram . | . . . Kick . | . . . Crush 1 | . 1 . Escape Stasis . | . . . Rewire . | . . . Trap . | . . . Miscellaneous . | . . . Route ------- -11/Scrapyard -10/Materials (discovered 4 exits: [*Mat x2] / [*Min x2]) -10/Mines (discovered 1 exit: [*Exi]) History --------- Turn | Location | Event 11 | -11/Scrapyard | Discovered new exit (range 16) 92 | -11/Scrapyard | Entered Materials 307 | -10/Materials | Build established: Mutant 363 | -10/Materials | Discovered new exit (range 8) 377 | -10/Materials | Core integrity fell below 50% 435 | -10/Materials | Discovered new exit (range 14) 524 | -10/Materials | Discovered new exit (range 16) 724 | -10/Materials | Discovered new exit (range 11) 1050 | -10/Materials | Entered Mines 1095 | -10/Mines | Learned location of Storage (-7) 1096 | -10/Mines | Met a Derelict bent on vengeance 1118 | -10/Mines | Deemed a non-threat by the Exiles lab entrance 1118 | -10/Mines | Discovered new exit (range 5) 1332 | -10/Mines | Crushed by falling debris 1332 | -10/Mines | Core integrity fell below 20% 1342 | -10/Mines | Crushed by falling debris 1342 | -10/Mines | Smashed by cave-in Last Messages --------------- numbers, and I suggest you do the same." 01097_ AZ-KTX(g) slips back into the shadows. 01118_ "No threat detected, you may enter." 01118_ EXIT=FOUND 01128_ 5BQBILFSVLLNKC#T3/8:/PM 01147_ S3HFXL IYRKIMTZF9 I2HR:EWFSGMIRDV 01183_ Acquired derelict log, extracted data. World map updated: -10/Materials. 01221_ K-01 Serf collects debris. 01230_ System corrupted: IFF burst signal emitted. 01247_ System corrupted: Lgt. Treads fused. 01270_ J6/BW /ML %S:SOM&H% NUJN 01301_ System corrupted: Component data lost. 01304_ The unstable cave ceiling collapses. 01332_ Crushed by falling debris. 01332_ Ion Engine destroyed. 01332_ System corrupted by crushing effect (+3). 01342_ The unstable cave ceiling collapses. 01342_ Crushed by falling debris. Map ----- +----------------------------------------------------+ | ???????????????????????????? | | ???????????????????????????? | | ???????????????????????????? | | ???????????????????????????? | | ???????????????????????????? | | ????????####???????????????? | | ??????## #???????????###? | | ?????? ??????????? #? | | ??????? ##???????? ## | | ???????# #######?? # | | ????????# ## ### # | | ?????????# # | | ??????????# # | | ??????????# | | ???????????# | | ???????????# ??? | | ???????????+ #????? | | ???????????+ ####### | | ???????????# | | ??????????## | | ??????????# ### ### | | ????####### #### #??? | | ????# # ##### #?# | | ???######### ##???# #### | | ??## ##????# #????# #??? | | ??#@ #???## #????# #??? | | ??#####??## #????# #??? | | ?????????# ###### #??? | | ?????????# #???# | | ?????????# #######???# | | ?????????## #?????????# | | ??????????# #?????????# | | ??????????# #?????????# | | ??????????## #????????## | | ???????????## ##?###??### | | ????????????#? #??# ### | | ????????????# #### | | ????????????# ## | | ????????????##### ### | | ????????????????# #?# ## | | ????????????????# ### #### | | ????????????????# ## ##?? | | ????????????????# ## #?? | | ????????????????# #?? | | ????????????????# ### ##?? | | ????????????????# #?#####??? | | ????????????????# #????????? | | ????????????????# ????????? | | ????????????????# #????????? | | ???????????????? #????????? | +----------------------------------------------------+ Best States ------------- Heat Dissipation 25 Energy Generation 10 Energy Capacity 250 Matter Stores 500 Matter Capacity 500 Sight Range 16 Robot Scan Range 14 Terrain Scan Density 10 Evasion (%) 50 Recoil Reduction 2 Item Schematics ----------------- None Robot Schematics ------------------ None Fabricated ------------ Nothing Alien Tech Used ----------------- None Achievements -------------- None Challenges ------------ None Game ------ Seed LauncherVortexProtection Manual? 0 Play Time 00:15:40 Cumulative 15.4 hours Start 2024.04.03 @ 20:05:12 End 2024.04.03 @ 22:54:52 Sessions 2 Manual Loads 0 Difficulty Rogue Special Mode None Game No. 28 Rogue 28 Adventurer 0 Explorer 0 Win Type - Total 0 Types 0/0/0/0/0/0/0/0/0 Lore% 18 Gallery% 16 Achievement% 15 Wizard Run 0 Options --------- Layout 1 ASCII 0 Keyboard 0 Movement Mouse Keybinds 0 Fullscreen 1 Font 24/Smallcaps Map View 50x35 Zoom Use 0% Tactical HUD 1 Map Filters NONE Filters NONE Steam 0 RUN: d571e14c-92c0-4798-9734-8f225ce78e99